{"text_format":"3","workbook":"xlsx","n_sheets":8,"sheets":["4 класс","5 класс","6 класс","7 класс","8 класс","9 класс","10 класс","11 класс"],"not_rendered":{"defined_names":8},"read":"whole","date_system":"1900"}

{"sheet":"4 класс","index":0,"n_rows":66,"n_cols":8,"rows_kept":66,"merged":[[0,1,0,3]]}
[null,"4 класс Русский язык (школьный этап)"]
[null,"ФАМИЛИЯ Имя и Отчество участника","школа ","баллы","%","ФИО учителя","макс кол-во баллов ",37]
["участник","Павлова Лилия Артемовна","МБОУ \"Вохтомская ОШ\"",13,{"$f":"D3*100/37","v":{"v":35.13513513513514,"d":"35"}},"Кишкина И.Н."]
["участник","Красильников Владислав Юрьевич","МБОУ \"Вохтомская ОШ\"",11,{"$f":"D4*100/37","v":{"v":29.72972972972973,"d":"30"}},"Кишкина И.Н."]
["участник","Кузнецов Арсений Игоревич","МБОУ \"Вохтомская ОШ\"",10,{"v":27.027027027027028,"d":"27"},"Кишкина И.Н."]
["участник","Митина Милена Владимировна","МБОУ \"Вохтомская ОШ\"",9,{"v":24.324324324324323,"d":"24"},"Кишкина И.Н."]
["участник","Дедков Матвей Николаевич","МБОУ \"Вохтомская ОШ\"",5,{"v":13.513513513513514,"d":"14"},"Кишкина И.Н."]
["участник","Сергеева София Ивановна","МБОУ \"Вохтомская ОШ\"",5,{"v":13.513513513513514,"d":"14"},"Кишкина И.Н."]
["участник","Пронин Дмитрий Алексеевич","МБОУ \"Вохтомскя ОШ\" СП \"Волошская ОШ\"",9,{"v":24.324324324324323,"d":"24"},"Яковлева М.П."]
["участник","Катышева Виктория Геннадьевна","МБОУ \"Вохтомскя ОШ\" СП \"Волошская ОШ\"",6,{"v":16.216216216216218,"d":"16"},"Яковлева М.П."]
["участник","Шубина Валерия Александровна","МБОУ \"Вохтомскя ОШ\" СП \"Волошская ОШ\"",4,{"v":10.81081081081081,"d":"11"},"Яковлева М.П."]
["участник","Андриянова Милана Андреевна","МБОУ \"Ерцевская СШ им. С.И. Бочарова\"",13,{"v":35.13513513513514,"d":"35"},"Голубева Т.П."]
["участник","Акуленко Вероника Игоревна","МБОУ \"Ерцевская СШ им. С.И. Бочарова\"",7,{"v":18.91891891891892,"d":"19"},"Голубева Т.П."]
["участник","Рафиева София Зафаровна","МБОУ \"Ерцевская СШ им. С.И. Бочарова\"",5,{"v":13.513513513513514,"d":"14"},"Голубева Т.П."]
["участник","Семенов Матвей Игоревич","МБОУ \"Коношеозерская СШ им. В.А.Корытова\"",9,{"v":24.324324324324323,"d":"24"},"Егорова Н.В."]
["участник","Латкин Александр Александрович","МБОУ \"Коношеозерская СШ им. В.А.Корытова\"",8,{"v":21.62162162162162,"d":"22"},"Егорова Н.В."]
["участник","Кичаков Артём Денисович","МБОУ \"Коношеозерская СШ им. В.А.Корытова\"",7,{"v":18.91891891891892,"d":"19"},"Егорова Н.В."]
["участник","Валов Ярослав Васильевич","МБОУ \"Коношеозерская СШ им. В.А.Корытова\"",3,{"v":8.108108108108109,"d":"8"},"Егорова Н.В."]
["участник","Юдина Марьяна Алексеевна","МБОУ \"Коношеозерская СШ им. В.А.Корытова\"",3,{"v":8.108108108108109,"d":"8"},"Егорова Н.В."]
["участник","Синксис Дмитрий Игоревич","МБОУ \"Коношеозерская СШ им. В.А.Корытова\"",2,{"v":5.405405405405405,"d":"5"},"Егорова Н.В."]
["участник","Титова Ксения Николаевна","МБОУ \"Коношская СШ имени Н.П. Лавёрова\"",14,{"v":37.83783783783784,"d":"38"},"Руденко А.Е."]
["участник","Курдюкова Эвелина Дмитриевна","МБОУ \"Коношская СШ имени Н.П. Лавёрова\"",14,{"v":37.83783783783784,"d":"38"},"Поздеева Л.Б."]
["участник","Верещагина Валерия Александровна","МБОУ \"Коношская СШ имени Н.П. Лавёрова\"",14,{"v":37.83783783783784,"d":"38"},"Кузнецова М.С."]
["участник","Гореликова Анастасия Витальевна","МБОУ \"Коношская СШ имени Н.П. Лавёрова\"",12,{"v":32.432432432432435,"d":"32"},"Руденко А.Е."]
["участник","Симоненко Иван Викторович","МБОУ \"Коношская СШ имени Н.П. Лавёрова\"",12,{"v":32.432432432432435,"d":"32"},"Поздеева Л.Б."]
["участник","Ручьев Денис Дмитриевич","МБОУ \"Коношская СШ имени Н.П. Лавёрова\"",11,{"v":29.72972972972973,"d":"30"},"Руденко А.Е."]
["участник","Пантелеева Татьяна Александровна","МБОУ \"Коношская СШ имени Н.П. Лавёрова\"",10,{"v":27.027027027027028,"d":"27"},"Серова Л.А."]
["участник","Калинина Мария Александровна","МБОУ \"Коношская СШ имени Н.П. Лавёрова\"",9,{"v":24.324324324324323,"d":"24"},"Поздеева Л.Б."]
["участник","Гладкова Варвара Сергеевна","МБОУ \"Коношская СШ имени Н.П. Лавёрова\"",9,{"v":24.324324324324323,"d":"24"},"Серова Л.А."]
["участник","Царук Виктория Денисовна","МБОУ \"Коношская СШ имени Н.П. Лавёрова\"",8,{"v":21.62162162162162,"d":"22"},"Кузнецова М.С."]
["участник","Вохтомин Андрей Михайлович","МБОУ \"Коношская СШ имени Н.П. Лавёрова\"",8,{"v":21.62162162162162,"d":"22"},"Серова Л.А."]
["участник","Коробкова Кира Максимовна","МБОУ \"Коношская СШ имени Н.П. Лавёрова\"",7,{"v":18.91891891891892,"d":"19"},"Поздеева Л.Б."]
["участник","Мошкин Артём Анатольевич","МБОУ \"Коношская СШ имени Н.П. Лавёрова\"",7,{"v":18.91891891891892,"d":"19"},"Кузнецова М.С."]
["участник","Шубина Мария Евгеньевна","МБОУ \"Коношская СШ имени Н.П. Лавёрова\"",6,{"v":16.216216216216218,"d":"16"},"Серова Л.А."]
["участник","Ожигин Алексей Евгеньевич","МБОУ \"Коношская СШ имени Н.П. Лавёрова\"",5,{"v":13.513513513513514,"d":"14"},"Поздеева Л.Б."]
["участник","Боброва Дарья Александровна","МБОУ \"Коношская СШ имени Н.П. Лавёрова\"",5,{"v":13.513513513513514,"d":"14"},"Серова Л.А."]
["участник","Шутеев Матвей Сергеевич","МБОУ \"Коношская СШ имени Н.П. Лавёрова\"",1,{"v":2.7027027027027026,"d":"3"},"Кузнецова М.С."]
["участник","Попков Евгений Васильевич","МБОУ \"Лесозаводская СШ\"",15,{"v":40.54054054054054,"d":"41"},"Головина Ольга Васильевна"]
["участник","Луговец Елизавета Алексеевна","МБОУ \"Лесозаводская СШ\"",9.5,{"v":25.675675675675677,"d":"26"},"Головина Ольга Васильевна"]
["участник","Коптяев Всеволод Андреевич","МБОУ \"Лесозаводская СШ\"",7,{"v":18.91891891891892,"d":"19"},"Головина Ольга Васильевна"]
["участник","Пичугина Дарья  Николаевна","МБОУ \"Лесозаводская СШ\"",7,{"v":18.91891891891892,"d":"19"},"Денисова Алевтина Владимировна"]
["участник","Пискунова Таисия Ильинична","МБОУ \"Лесозаводская СШ\"",6,{"v":16.216216216216218,"d":"16"},"Денисова Алевтина Владимировна"]
["участник","Савчук Ульяна Степановна","МБОУ \"Лесозаводская СШ\"",6,{"v":16.216216216216218,"d":"16"},"Денисова Алевтина Владимировна"]
["участник","Ускова Анастасия Александровна","МБОУ \"Лесозаводская СШ\"",6,{"v":16.216216216216218,"d":"16"},"Денисова Алевтина Владимировна"]
["участник","Вербицкая Надежда Анатольевна","МБОУ \"Лесозаводская СШ\"",4,{"v":10.81081081081081,"d":"11"},"Денисова Алевтина Владимировна"]
["участник","Дмитриевский Николай Евгеньевич","МБОУ \"Лесозаводская СШ\"",4,{"v":10.81081081081081,"d":"11"},"Денисова Алевтина Владимировна"]
["участник","Куликова Эвелина Алексеевна","МБОУ \"Лесозаводская СШ\"",3,{"v":8.108108108108109,"d":"8"},"Денисова Алевтина Владимировна"]
["участник","Безрукова Мария Николаевна","МБОУ \"Лесозаводская СШ\"",2,{"v":5.405405405405405,"d":"5"},"Головина Ольга Васильевна"]
["участник","Хватов Вадим Андреевич","МБОУ \"Подюжская СШ им. В.А. Абрамова\"",10,{"v":27.027027027027028,"d":"27"},"Вострякова Т.В."]
["участник","Хватов Вадим Андреевич","МБОУ \"Подюжская СШ им. В.А. Абрамова\"",10,{"v":27.027027027027028,"d":"27"},"Вострякова Т.В."]
["участник","Казаринова Олеся Игоревна","МБОУ \"Подюжская СШ им. В.А. Абрамова\"",8,{"v":21.62162162162162,"d":"22"},"Вострякова Т.В."]
["участник","Казаринова Олеся Игоревна","МБОУ \"Подюжская СШ им. В.А. Абрамова\"",8,{"v":21.62162162162162,"d":"22"},"Вострякова Т.В."]
["участник","Казаринов Назар Игоревич","МБОУ \"Подюжская СШ им. В.А. Абрамова\"",7,{"v":18.91891891891892,"d":"19"},"Вострякова Т.В."]
["участник","Васильев Матвей Михайлович","МБОУ \"Подюжская СШ им. В.А. Абрамова\"",7,{"v":18.91891891891892,"d":"19"},"Пихтина Е.В."]
["участник","Казаринов Назар Игоревич","МБОУ \"Подюжская СШ им. В.А. Абрамова\"",7,{"v":18.91891891891892,"d":"19"},"Вострякова Т.В."]
["участник","Васильев Матвей Михайлович","МБОУ \"Подюжская СШ им. В.А. Абрамова\"",7,{"v":18.91891891891892,"d":"19"},"Пихтина Е.В."]
["участник","Ломака Максим Дмитриевич","МБОУ \"Подюжская СШ им. В.А. Абрамова\"",4,{"v":10.81081081081081,"d":"11"},"Пихтина Е.В."]
["участник","Ломака Максим Дмитриевич","МБОУ \"Подюжская СШ им. В.А. Абрамова\"",4,{"v":10.81081081081081,"d":"11"},"Пихтина Е.В."]
["участник","Серебрянников Григорий Олегович","МБОУ \"Подюжская СШ им. В.А. Абрамова\"",3,{"v":8.108108108108109,"d":"8"},"Пихтина Е.В."]
["участник","Серебрянников Григорий Олегович","МБОУ \"Подюжская СШ им. В.А. Абрамова\"",3,{"v":8.108108108108109,"d":"8"},"Пихтина Е.В."]
["участник","Вохтомин Родион Дмитриевич","МБОУ \"Подюжская СШ им. В.А. Абрамова\"",1,{"v":2.7027027027027026,"d":"3"},"Вострякова Т.В.",{"$f":"D","v":{"$error":"#NAME?"}}]
["участник","Вохтомин Родион Дмитриевич","МБОУ \"Подюжская СШ им. В.А. Абрамова\"",1,{"v":2.7027027027027026,"d":"3"},"Вострякова Т.В."]
["участник","Малышев Матвей Максимович","МБОУ \"Подюжская СШ им. В.А. Абрамова\"",0,0,"Вострякова Т.В."]
["участник","Малышев Матвей Максимович","МБОУ \"Подюжская СШ им. В.А. Абрамова\"",0,0,"Вострякова Т.В."]
["участник","Гришечкина Анастасия Денисовна","МБОУ \"Тавреньгская Ш\"",12,{"v":32.432432432432435,"d":"32"},"Попова Н. В. "]
["участник","Ушакова  Александра Евгеньевна","МБОУ \"Тавреньгская Ш\"",7,{"v":18.91891891891892,"d":"19"},"Попова Н. В. "]

{"sheet":"5 класс","index":1,"n_rows":39,"n_cols":8,"rows_kept":39,"merged":[[0,1,0,3]]}
[null,"5 класс Русский язык (школьный этап)"]
[null,"ФАМИЛИЯ Имя и Отчество участника","школа ","баллы","%","ФИО учителя","макс кол-во баллов ",73]
["участник","Кишкина Дарья Олеговна","МБОУ \"Вохтомская ОШ\"",26,{"$f":"D3*100/73","v":{"v":35.61643835616438,"d":"36"}},"Рудакова О.М."]
["участник","Яковлева Дарья Юрьевна","МБОУ \"Вохтомская ОШ\" СП \"Волошская ОШ\"",31,{"v":42.465753424657535,"d":"42"},"Иванова Е.Н."]
["призер","Тарасов Георгий Александрович","МБОУ \"Ерцевская СШ им. С.И. Бочарова\"",36,{"v":49.31506849315068,"d":"49"},"Черноусова Г.Д."]
["участник","Бормотова Маргарита Владимировна","МБОУ \"Ерцевская СШ им. С.И. Бочарова\"",24,{"v":32.87671232876713,"d":"33"},"Черноусова Г.Д."]
["участник","Горовенко Варвара Сергеевна","МБОУ \"Ерцевская СШ им. С.И. Бочарова\"",21,{"v":28.767123287671232,"d":"29"},"Черноусова Г.Д."]
["участник","Жамков Савва Алексеевич","МБОУ \"Ерцевская СШ им. С.И. Бочарова\"",19,{"v":26.027397260273972,"d":"26"},"Черноусова Г.Д."]
["участник","Шатаев Семён Александрович","МБОУ \"Ерцевская СШ им. С.И. Бочарова\"",19,{"v":26.027397260273972,"d":"26"},"Черноусова Г.Д."]
["участник","Черепанова Варвара Андреевна","МБОУ \"Ерцевская СШ им. С.И. Бочарова\"",18,{"v":24.65753424657534,"d":"25"},"Черноусова Г.Д."]
["участник","Головкова Софья Андреевна","МБОУ \"Ерцевская СШ им. С.И. Бочарова\"",15,{"v":20.54794520547945,"d":"21"},"Черноусова Г.Д."]
["участник","Козлов Станислав Викторович","МБОУ \"Климовская СШ\"",30,{"v":41.0958904109589,"d":"41"},"Пателина Е.М."]
["участник","Бова Александра Анатольевна","МБОУ \"Коношеозерская СШ им. В.А.Корытова\"",27,{"v":36.986301369863014,"d":"37"},"Ефремычева Г.И."]
["участник","Гарунов Владимир Александрович","МБОУ \"Коношеозерская СШ им. В.А.Корытова\"",22,{"v":30.136986301369863,"d":"30"},"Ефремычева Г.И."]
["участник","Евдокимов Константин Александрович","МБОУ \"Коношеозерская СШ им. В.А.Корытова\"",19,{"v":26.027397260273972,"d":"26"},"Ефремычева Г.И."]
["участник","Бахвалова Елизавета Сергеевна","МБОУ \"Коношеозерская СШ им. В.А.Корытова\"",16,{"v":21.91780821917808,"d":"22"},"Ефремычева Г.И."]
["участник","Серков Марк Янович","МБОУ \"Коношеозерская СШ им. В.А.Корытова\"",16,{"v":21.91780821917808,"d":"22"},"Ефремычева Г.И."]
["призер","Архачёва Василиса Витальевна","МБОУ \"Коношская СШ имени Н.П. Лавёрова\"",36,{"v":49.31506849315068,"d":"49"},"Власова Г.В."]
["призер","Лукина Мария Алексеевна","МБОУ \"Коношская СШ имени Н.П. Лавёрова\"",36,{"v":49.31506849315068,"d":"49"},"Мерёжина Н.Н."]
["призер","Цеповяз Диана Александровна","МБОУ \"Коношская СШ имени Н.П. Лавёрова\"",34,{"v":46.57534246575342,"d":"47"},"Вилакова И.П."]
["участник","Власова Мария Игоревна","МБОУ \"Коношская СШ имени Н.П. Лавёрова\"",29,{"v":39.726027397260275,"d":"40"},"Мерёжина Н.Н."]
["участник","Кузнецова Софья Андреевна","МБОУ \"Коношская СШ имени Н.П. Лавёрова\"",26,{"v":35.61643835616438,"d":"36"},"Власова Г.В."]
["участник","Скурихина Кира Андреевна","МБОУ \"Коношская СШ имени Н.П. Лавёрова\"",25,{"v":34.24657534246575,"d":"34"},"Мерёжина Н.Н."]
["участник","Алеханов Савелий Александрович","МБОУ \"Коношская СШ имени Н.П. Лавёрова\"",24,{"v":32.87671232876713,"d":"33"},"Власова Г.В."]
["участник","Андреев Илья Алексеевич","МБОУ \"Коношская СШ имени Н.П. Лавёрова\"",24,{"v":32.87671232876713,"d":"33"},"Ершова Е.В."]
["участник","Букаева Таисия Дмитриевна","МБОУ \"Коношская СШ имени Н.П. Лавёрова\"",21,{"v":28.767123287671232,"d":"29"},"Ершова Е.В."]
["участник","Юрин Артур Сергеевич","МБОУ \"Коношская СШ имени Н.П. Лавёрова\"",19,{"v":26.027397260273972,"d":"26"},"Ершова Е.В."]
["призер","Пушкарёв Даниил Дмитриевич","МБОУ \"Лесозаводская СШ\"",35,{"v":47.945205479452056,"d":"48"},"Петрова Т.Н."]
["участник","Кукушкина Маргарита Валерьевна","МБОУ \"Лесозаводская СШ\"",28,{"v":38.35616438356164,"d":"38"},"Петрова Т.Н."]
["участник","Варганов Кирилл Андреевич","МБОУ \"Лесозаводская СШ\"",27,{"v":36.986301369863014,"d":"37"},"Дубонос С,Н."]
["участник","Усачёв Савелий Сергеевич","МБОУ \"Лесозаводская СШ\"",25,{"v":34.24657534246575,"d":"34"},"Петрова Т.Н."]
["участник","Жижикина Вероника Сергеевна","МБОУ \"Лесозаводская СШ\"",22,{"v":30.136986301369863,"d":"30"},"Петрова Т.Н."]
["участник","Ермолин Сергей Максимович","МБОУ \"Лесозаводская СШ\"",19,{"v":26.027397260273972,"d":"26"},"Петрова Т.Н."]
["участник","Левшинова Олеся Васильевна","МБОУ \"Лесозаводская СШ\"",17,{"v":23.28767123287671,"d":"23"},"Петрова Т.Н."]
["участник","Страшненков Никита Андреевич","МБОУ \"Подюжская СШ им. В.А. Абрамова\"",29,{"v":39.726027397260275,"d":"40"},"Шубина Е.В."]
["участник","Сархадова Мария Валерьевна","МБОУ \"Подюжская СШ им. В.А. Абрамова\"",24,{"v":32.87671232876713,"d":"33"},"Шубина Е.В."]
["участник","Березина Дарья Васильевна","МБОУ \"Подюжская СШ им. В.А. Абрамова\"",22,{"v":30.136986301369863,"d":"30"},"Шубина Е.В."]
["участник","Микрюков Сергей Михайлович","МБОУ \"Подюжская СШ им. В.А. Абрамова\"",19,{"v":26.027397260273972,"d":"26"},"Шубина Е.В."]
["участник","Рогозинский Ярослав Алексеевич","МБОУ \"Подюжская СШ им. В.А. Абрамова\"",5,{"v":6.8493150684931505,"d":"7"},"Шубина Е.В."]

{"sheet":"6 класс","index":2,"n_rows":49,"n_cols":8,"rows_kept":49,"merged":[[0,1,0,3]]}
[null,"6 класс Русский язык (школьный этап)"]
[null,"ФАМИЛИЯ Имя и Отчество участника","школа ","баллы","%","ФИО учителя","макс кол-во баллов ",79]
["победитель","Андриянова Дарья Константиновна","МБОУ \"Вохтомская ОШ\"",48,{"$f":"D3*100/79","v":{"v":60.75949367088607,"d":"61"}},"Гольцева О.М."]
["призер","Ивашов Роман Сергеевич","МБОУ \"Вохтомская ОШ\"",37.5,{"v":47.46835443037975,"d":"47"},"Гольцева О.М."]
["участник","Виноградов Алексей Владимирович","МБОУ \"Вохтомская ОШ\"",30.5,{"v":38.607594936708864,"d":"39"},"Гольцева О.М."]
["участник","Маурин Валерий Алексеевич","МБОУ \"Вохтомская ОШ\"",27.5,{"v":34.81012658227848,"d":"35"},"Гольцева О.М."]
["участник","Патюкова Дарина  Александровна","МБОУ \"Вохтомская ОШ\"",12,{"v":15.189873417721518,"d":"15"},"Гольцева О.М."]
["призер","Яковлева Мария Александровна","МБОУ \"Вохтомская ОШ\" СП \"Волошская ОШ\"",38,{"v":48.10126582278481,"d":"48"},"Иванова Е.Н."]
["призер","Денисова Ева Евгеньевна","МБОУ \"Ерцевская СШ им. С.И. Бочарова\"",35.5,{"v":44.936708860759495,"d":"45"},"Каданцева Н.В."]
["призер","Сибирякова Полина Алексеевна","МБОУ \"Ерцевская СШ им. С.И. Бочарова\"",35.5,{"v":44.936708860759495,"d":"45"},"Каданцева Н.В."]
["участник","Золтов Дмитрий Николаевич","МБОУ \"Ерцевская СШ им. С.И. Бочарова\"",33.5,{"v":42.40506329113924,"d":"42"},"Каданцева Н.В."]
["участник","Колесникова Вера Евгеньевна","МБОУ \"Ерцевская СШ им. С.И. Бочарова\"",33.5,{"v":42.40506329113924,"d":"42"},"Каданцева Н.В."]
["участник","Юрьева Виктория Максимовна","МБОУ \"Ерцевская СШ им. С.И. Бочарова\"",31,{"v":39.24050632911393,"d":"39"},"Черноусова Г.Д."]
["участник","Фрикликас Егор Максимович","МБОУ \"Ерцевская СШ им. С.И. Бочарова\"",30.5,{"v":38.607594936708864,"d":"39"},"Черноусова Г.Д."]
["участник","Порсенкова Ксения Сергеевна","МБОУ \"Ерцевская СШ им. С.И. Бочарова\"",30.5,{"v":38.607594936708864,"d":"39"},"Каданцева Н.В."]
["участник","Соколова Марина Алексеевна","МБОУ \"Ерцевская СШ им. С.И. Бочарова\"",23.5,{"v":29.746835443037973,"d":"30"},"Черноусова Г.Д."]
["участник","Пальчиков Александр Андреевич","МБОУ \"Ерцевская СШ им. С.И. Бочарова\"",23,{"v":29.11392405063291,"d":"29"},"Черноусова Г.Д."]
["участник","Рыжков Артём Алексеевич","МБОУ \"Ерцевская СШ им. С.И. Бочарова\"",22.5,{"v":28.481012658227847,"d":"28"},"Черноусова Г.Д."]
["участник","Шахова Алина Алексеевна","МБОУ \"Климовская СШ\"",18,{"v":22.78481012658228,"d":"23"},"Пателина Е.М."]
["победитель","Башкирев Алексей Николаевич","МБОУ \"Коношеозерская СШ им. В.А.Корытова\"",50.5,{"v":63.924050632911396,"d":"64"},"Ионина О.А."]
["участник","Егоров Павел Александрович","МБОУ \"Коношеозерская СШ им. В.А.Корытова\"",21,{"v":26.582278481012658,"d":"27"},"Ионина О.А."]
["участник","Пирожкин Павел Андреевич","МБОУ \"Коношеозерская СШ им. В.А.Корытова\"",20,{"v":25.31645569620253,"d":"25"},"Ионина О.А."]
["участник","Лобачева Арина Дмитриевна","МБОУ \"Коношеозерская СШ им. В.А.Корытова\"",18,{"v":22.78481012658228,"d":"23"},"Ионина О.А."]
["участник","Павлова Кристина Николаевна","МБОУ \"Коношеозерская СШ им. В.А.Корытова\"",14,{"v":17.72151898734177,"d":"18"},"Ионина О.А."]
["участник","Аронова Ксения Евгеньевна","МБОУ \"Коношеозерская СШ им. В.А.Корытова\"",9.5,{"v":12.025316455696203,"d":"12"},"Ионина О.А."]
["участник","Тарасов Даниил Николаевич","МБОУ \"Коношеозерская СШ им. В.А.Корытова\"",8.5,{"v":10.759493670886076,"d":"11"},"Ионина О.А."]
["победитель","Дементьева Владислава Антоновна","МБОУ \"Коношская СШ имени Н.П. Лавёрова\"",47.5,{"v":60.12658227848101,"d":"60"},"Ершова Е.В."]
["участник","Захарова Полина Владиславовна","МБОУ \"Коношская СШ имени Н.П. Лавёрова\"",33,{"v":41.77215189873418,"d":"42"},"Пальчикова А.А"]
["участник","Пузина Виктория Валерьевна","МБОУ \"Коношская СШ имени Н.П. Лавёрова\"",32,{"v":40.50632911392405,"d":"41"},"Ершова Е.В."]
["участник","Лукаш Анна Павловна","МБОУ \"Коношская СШ имени Н.П. Лавёрова\"",30.5,{"v":38.607594936708864,"d":"39"},"Пальчикова А.А"]
["участник"," Писарев Матвей Степанович","МБОУ \"Коношская СШ имени Н.П. Лавёрова\"",26,{"v":32.91139240506329,"d":"33"},"Ершова Е.В."]
["участник","Ананьев Данил Андреевич","МБОУ \"Коношская СШ имени Н.П. Лавёрова\"",24,{"v":30.379746835443036,"d":"30"},"Пальчикова А.А."]
["участник","Малозёмова Елизавета Викторовна","МБОУ \"Коношская СШ имени Н.П. Лавёрова\"",23.5,{"v":29.746835443037973,"d":"30"},"Пальчикова А.А."]
["участник","Афанасьев Максим Николаевич","МБОУ \"Коношская СШ имени Н.П. Лавёрова\"",22,{"v":27.848101265822784,"d":"28"},"Пальчикова А.А"]
["участник","Ершова Дарья Евгеньевна","МБОУ \"Коношская СШ имени Н.П. Лавёрова\"",18.5,{"v":23.417721518987342,"d":"23"},"Пальчикова А.А."]
["участник","Оскаленко Александр Максимович","МБОУ \"Коношская СШ имени Н.П. Лавёрова\"",18.5,{"v":23.417721518987342,"d":"23"},"Ершова Е.В."]
["участник","Лукаш Татьяна Павловна","МБОУ \"Коношская СШ имени Н.П. Лавёрова\"",15,{"v":18.9873417721519,"d":"19"},"Пальчикова А.А"]
["участник","Черепанова Ульяна Сергеевна","МБОУ \"Коношская СШ имени Н.П. Лавёрова\"",13,{"v":16.455696202531644,"d":"16"},"Ершова Е.В."]
["участник","Гергедава Анастасия Кахаевна","МБОУ \"Коношская СШ имени Н.П. Лавёрова\"",11,{"v":13.924050632911392,"d":"14"},"Комотёсова Н.Н."]
["участник","Клепикова Валерия Артёмовна","МБОУ \"Коношская СШ имени Н.П. Лавёрова\"",8.5,{"v":10.759493670886076,"d":"11"},"Пальчикова А.А."]
["победитель","Лапочкина Арина Александровна","МБОУ \"Лесозаводская СШ\"",39.5,50,"Ткаченко А.Н."]
["участник","Виткова Дарья Сергеевна","МБОУ \"Лесозаводская СШ\"",24,{"v":30.379746835443036,"d":"30"},"Ткаченко А.Н."]
["участник","Гольцева Александра Андреевна","МБОУ \"Лесозаводская СШ\"",24,{"v":30.379746835443036,"d":"30"},"Ткаченко А.Н."]
["участник","Плотникова Полина Андреевна","МБОУ \"Лесозаводская СШ\"",23,{"v":29.11392405063291,"d":"29"},"Ткаченко А.Н."]
["участник","Кожемякина Яна Анатольевна","МБОУ \"Лесозаводская СШ\"",16.5,{"v":20.88607594936709,"d":"21"},"Ткаченко А.Н."]
["участник","Стоянова Кристина Игоревна","МБОУ \"Подюжская СШ им. В.А. Абрамова\"",33.5,{"v":42.40506329113924,"d":"42"},"Шубина Е.В."]
["участник","Юсупмурзина Полина Юрьевна","МБОУ \"Подюжская СШ им. В.А. Абрамова\"",31,{"v":39.24050632911393,"d":"39"},"Шубина Е.В."]
["участник","Порохина Наталья Сергеевна","МБОУ \"Подюжская СШ им. В.А. Абрамова\"",24,{"v":30.379746835443036,"d":"30"},"Шубина Е.В."]
["участник",{"$nulls":3},0]

{"sheet":"7 класс","index":3,"n_rows":48,"n_cols":8,"rows_kept":48,"merged":[[0,1,0,3]]}
[null,"7 класс Русский язык (школьный этап)",{"$nulls":3},"макс кол-во баллов ",null,48]
[null,"ФАМИЛИЯ Имя и Отчество участника","школа ","баллы","%","ФИО учителя"]
["участник","Константинов Павел Леонидович","МБОУ \"Вохтомская ОШ\"",14.5,{"$f":"D3*100/48","v":{"v":30.208333333333332,"d":"30"}},"Гольцева О.В."]
["участник","Рудаков Максим Иванович","МБОУ \"Вохтомская ОШ\"",12.5,{"v":26.041666666666668,"d":"26"},"Гольцева О.В."]
["участник","Красильникова Дарья Юрьевна","МБОУ \"Вохтомская ОШ\"",11,{"v":22.916666666666668,"d":"23"},"Гольцева О.В."]
["участник","Гандзий Иоланта Николаевна","МБОУ \"Вохтомская ОШ\"",10,{"v":20.833333333333332,"d":"21"},"Гольцева О.В."]
["победитель","Вавилина Варвара Алексеевна","МБОУ \"Ерцевская СШ им. С.И. Бочарова\"",30,{"v":62.5,"d":"63"},"Черноусова Г.Д."]
["победитель","Змиевская Милана Александровна","МБОУ \"Ерцевская СШ им. С.И. Бочарова\"",30,{"v":62.5,"d":"63"},"Черноусова Г.Д."]
["призер","Малинина Елизавета Валерьевна","МБОУ \"Ерцевская СШ им. С.И. Бочарова\"",26,{"v":54.166666666666664,"d":"54"},"Черноусова Г.Д."]
["призер","Руссу Дарина Руслановна","МБОУ \"Ерцевская СШ им. С.И. Бочарова\"",22,{"v":45.833333333333336,"d":"46"},"Черноусова Г.Д."]
["участник","Малышкина Алиса Юрьевна","МБОУ \"Ерцевская СШ им. С.И. Бочарова\"",18,{"v":37.5,"d":"38"},"Черноусова Г.Д."]
["участник","Силичева Варвара Дмитриевна","МБОУ \"Ерцевская СШ им. С.И. Бочарова\"",17.5,{"v":36.458333333333336,"d":"36"},"Черноусова Г.Д."]
["участник","Виноградов Алексей Иванович","МБОУ \"Ерцевская СШ им. С.И. Бочарова\"",8,{"v":16.666666666666668,"d":"17"},"Черноусова Г.Д."]
["участник","Филиппова Даья Дмитриевна","МБОУ \"Коношеозерская СШ им. В.А.Корытова\"",16,{"v":33.333333333333336,"d":"33"},"Ефремычева Г.И."]
["участник","Хохлов  Данил Михайлович","МБОУ \"Коношеозерская СШ им. В.А.Корытова\"",14.5,{"v":30.208333333333332,"d":"30"},"Ефремычева Г.И."]
["участник","Полозова Карина Александровна","МБОУ \"Коношеозерская СШ им. В.А.Корытова\"",13,{"v":27.083333333333332,"d":"27"},"Ефремычева Г.И."]
["участник","Шихов Матвей Владимирович","МБОУ \"Коношеозерская СШ им. В.А.Корытова\"",12,25,"Ефремычева Г.И."]
["участник","Филиппова Татьяна Дмитриевна","МБОУ \"Коношеозерская СШ им. В.А.Корытова\"",11,{"v":22.916666666666668,"d":"23"},"Ефремычева Г.И."]
["участник","Илатовская София Алексеевна","МБОУ \"Коношеозерская СШ им. В.А.Корытова\"",7,{"v":14.583333333333334,"d":"15"},"Ефремычева Г.И."]
["участник","Купрейчик Тимур Владимирович","МБОУ \"Коношеозерская СШ им. В.А.Корытова\"",1.5,{"v":3.125,"d":"3"},"Ефремычева Г.И."]
["участник","Вараксина Альбина Александровна","МБОУ \"Коношская ОШ\"",7.5,{"v":15.625,"d":"16"},"Павлова А.Н."]
["победитель","Мельникова Алина Андреевна","МБОУ \"Коношская СШ имени Н.П. Лавёрова\"",30.5,{"v":63.541666666666664,"d":"64"},"Комотёсова Н.Н."]
["призер","Григорьева Варвара Алексеевна","МБОУ \"Коношская СШ имени Н.П. Лавёрова\"",24,50,"Кузнецова Л.В."]
["призер","Горбачёва Алина Евгеньевна","МБОУ \"Коношская СШ имени Н.П. Лавёрова\"",24,50,"Кузнецова Л.В."]
["призер","Гергедава Александра Кахаевна","МБОУ \"Коношская СШ имени Н.П. Лавёрова\"",23,{"v":47.916666666666664,"d":"48"},"Кузнецова Л.В."]
["участник","Ершов Илья Владимирович","МБОУ \"Коношская СШ имени Н.П. Лавёрова\"",17.5,{"v":36.458333333333336,"d":"36"},"Кузнецова Л.В."]
["участник","Наумов Марк Александрович","МБОУ \"Коношская СШ имени Н.П. Лавёрова\"",17.5,{"v":36.458333333333336,"d":"36"},"Кузнецова Л.В."]
["участник","Фомина Полина Александровна","МБОУ \"Коношская СШ имени Н.П. Лавёрова\"",17.5,{"v":36.458333333333336,"d":"36"},"Кузнецова Л.В."]
["участник","Филин Денис Сергеевич","МБОУ \"Коношская СШ имени Н.П. Лавёрова\"",16.5,{"v":34.375,"d":"34"},"Кузнецова Л.В."]
["участник","Тошова Ольга Шамшодовна","МБОУ \"Коношская СШ имени Н.П. Лавёрова\"",16,{"v":33.333333333333336,"d":"33"},"Власова Г.В."]
["участник","Волощенко Анастасия Сергеевна","МБОУ \"Коношская СШ имени Н.П. Лавёрова\"",15.5,{"v":32.291666666666664,"d":"32"},"Кузнецова Л.В."]
["участник","Рупосова Екатерина Юрьевна","МБОУ \"Коношская СШ имени Н.П. Лавёрова\"",14,{"v":29.166666666666668,"d":"29"},"Кузнецова Л.В."]
["участник","Лебедев Кирилл Алексеевич","МБОУ \"Коношская СШ имени Н.П. Лавёрова\"",13.5,{"v":28.125,"d":"28"},"Пальчикова А.А."]
["участник","Калинина Полина Алексеевна","МБОУ \"Коношская СШ имени Н.П. Лавёрова\"",12.5,{"v":26.041666666666668,"d":"26"},"Комртёсова Н.Н."]
["участник","Панарин Сергей Владимирович","МБОУ \"Коношская СШ имени Н.П. Лавёрова\"",10,{"v":20.833333333333332,"d":"21"},"Власова Г.В."]
["участник","Кузнецова София Михайловна","МБОУ \"Коношская СШ имени Н.П. Лавёрова\"",10,{"v":20.833333333333332,"d":"21"},"Кузнецова Л.В."]
["победитель","Быков Дмитрий Алексеевич","МБОУ \"Лесозаводская СШ\"",26.5,{"v":55.208333333333336,"d":"55"},"Ткаченко А.Н."]
["победитель","Решетникова Полина Михайловна","МБОУ \"Лесозаводская СШ\"",24.5,{"v":51.041666666666664,"d":"51"},"Ткаченко А.Н."]
["победитель","Кузьмина Агния Ивановна","МБОУ \"Лесозаводская СШ\"",24,50,"Петрова Т.Н."]
["участник","Григорова Полина Александровна","МБОУ \"Лесозаводская СШ\"",21,{"v":43.75,"d":"44"},"Ткаченко А.Н."]
["участник","Дубонос Жанна Алексеевна","МБОУ \"Лесозаводская СШ\"",20,{"v":41.666666666666664,"d":"42"},"Петрова Т.Н."]
["участник","Кошкин Владислав Александрович","МБОУ \"Лесозаводская СШ\"",19,{"v":39.583333333333336,"d":"40"},"Ткаченко А.Н."]
["участник","Прибыткова Вероника Артёмовна","МБОУ \"Лесозаводская СШ\"",18.5,{"v":38.541666666666664,"d":"39"},"Ткаченко А.Н."]
["участник","Дербитцкий Денис Александрович","МБОУ \"Лесозаводская СШ\"",17,{"v":35.416666666666664,"d":"35"},"Петрова Т.Н.",48]
["участник","Кузнецова Анастасия Юрьевна","МБОУ \"Лесозаводская СШ\"",16.5,{"v":34.375,"d":"34"},"Петрова Т.Н."]
["участник","Смирнова Лидия Игоревна ","МБОУ \"Лесозаводская СШ\"",15.5,{"v":32.291666666666664,"d":"32"},"Ткаченко А.Н."]
["участник","Перекипня Виктория Александровна","МБОУ \"Лесозаводская СШ\"",6,{"v":12.5,"d":"13"},"Петрова Т.Н."]
["участник","Симановский Артем Николаевич","МБОУ \"Подюжская СШ им. В.А. Абрамова\"",17,{"v":35.416666666666664,"d":"35"},"Быкова А.В."]

{"sheet":"8 класс","index":4,"n_rows":49,"n_cols":8,"rows_kept":49,"merged":[[0,1,0,3]]}
[null,"8 класс Русский язык  (школьный этап)"]
[null,"Фамилия Имя и Отчество участника","школа ","баллы","%","ФИО учителя","макс кол-во баллов ",48]
["участник","Вахрушин Сергей Денисович","МБОУ \"Вохтомская ОШ\"",13.5,{"$f":"D3*100/48","v":28.125},"Гольцева О.В."]
["победитель","Пронин Владимир Алексеевич","МБОУ \"Вохтомская ОШ\" СП \"Волошская ОШ\"",28,{"$f":"D4*100/48","v":58.333333333333336},"Пронина Е.И."]
["участник","Матюнин Роман Владимирович","МБОУ \"Вохтомская ОШ\" СП \"Волошская ОШ\"",16,33.333333333333336,"Пронина Е.И."]
["участник","Зажигин Евгений Николаевич","МБОУ \"Вохтомская ОШ\" СП \"Волошская ОШ\"",9.5,19.791666666666668,"Пронина Е.И."]
["победитель","Лопатина Варвара Викторовна","МБОУ \"Ерцевская СШ им. С.И. Бочарова\"",36.5,76.04166666666667,"Каданцева Н.В."]
["призер","Архипова Полина Валентиновна","МБОУ \"Ерцевская СШ им. С.И. Бочарова\"",36,75,"Каданцева Н.В."]
["призер","Сухнева Юлия Николаевна","МБОУ \"Ерцевская СШ им. С.И. Бочарова\"",35.5,73.95833333333333,"Каданцева Н.В."]
["призер","Седалина Екатерина Александровна","МБОУ \"Ерцевская СШ им. С.И. Бочарова\"",32.5,67.70833333333333,"Каданцева Н.В."]
["призер","Крылов Матвей Егорович","МБОУ \"Ерцевская СШ им. С.И. Бочарова\"",22,45.833333333333336,"Каданцева Н.В."]
["призер","Рафиев Тамерлан Зафарович","МБОУ \"Ерцевская СШ им. С.И. Бочарова\"",22,45.833333333333336,"Каданцева Н.В."]
["участник","Дерягина Маргарита Вячеславовна","МБОУ \"Ерцевская СШ им. С.И. Бочарова\"",21,43.75,"Каданцева Н.В."]
["участник","Гришина София Сергеевна","МБОУ \"Ерцевская СШ им. С.И. Бочарова\"",20.5,42.708333333333336,"Каданцева Н.В."]
["участник","Швецов Александр Олегович","МБОУ \"Ерцевская СШ им. С.И. Бочарова\"",17.5,36.458333333333336,"Каданцева Н.В."]
["участник","Лобанова Полина Андреевна","МБОУ \"Климовская СШ\"",16,33.333333333333336,"Пателина Е.М."]
["победитель","Замыцкий Михаил Евгеньевич","МБОУ \"Коношеозерская СШ им. В.А.Корытова\"",27,56.25,"Ефремычева Г.И."]
["призер","Смирнов Александр Дмитриевич","МБОУ \"Коношеозерская СШ им. В.А.Корытова\"",26,54.166666666666664,"Ефремычева Г.И."]
["участник","Носков \nТимур Владиславович\n","МБОУ \"Коношеозерская СШ им. В.А.Корытова\"",14.5,30.208333333333332,"Ефремычева Г.И."]
["участник","Ожигин Максим Владимирович","МБОУ \"Коношеозерская СШ им. В.А.Корытова\"",14,29.166666666666668,"Ефремычева Г.И."]
["участник","Новоселов Степан Витаевич","МБОУ \"Коношеозерская СШ им. В.А.Корытова\"",13,27.083333333333332,"Ефремычева Г.И."]
["победитель","Мишутина Милена Вячеславовна","МБОУ \"Коношская СШ имени Н.П. Лавёрова\"",41,85.41666666666667,"Власова Г.В."]
["призер","Корнейчук Ульяна Михайловна","МБОУ \"Коношская СШ имени Н.П. Лавёрова\"",34.5,71.875,"Власова Г.В."]
["призер","Лупандина Вероника Артемовна","МБОУ \"Коношская СШ имени Н.П. Лавёрова\"",24.5,51.041666666666664,"Власова Г.В."]
["призер","Смирнова Софья Андреевна","МБОУ \"Коношская СШ имени Н.П. Лавёрова\"",24,50,"Власова Г.В."]
["призер","Андрейчикова Вероника Алексеевна","МБОУ \"Коношская СШ имени Н.П. Лавёрова\"",22.5,46.875,"Кузнецова Л.В."]
["участник","Закатов Леонид Сергеевич","МБОУ \"Коношская СШ имени Н.П. Лавёрова\"",21.5,44.791666666666664,"Власова Г.В."]
["участник","Григорова Екатерина Михайловна","МБОУ \"Коношская СШ имени Н.П. Лавёрова\"",20,41.666666666666664,"Власова Г.В."]
["участник","Корякина Елизавета Алексеевна","МБОУ \"Коношская СШ имени Н.П. Лавёрова\"",18.5,38.541666666666664,"Кузнецова Л.В."]
["участник","Потягов Никита Романович","МБОУ \"Коношская СШ имени Н.П. Лавёрова\"",18.5,38.541666666666664,"Власова Г.В."]
["участник","Ершова Анастасия Сергеевна","МБОУ \"Коношская СШ имени Н.П. Лавёрова\"",18,37.5,"Кузнецова Л.В."]
["участник","Кузнецов Кирилл Русланович","МБОУ \"Коношская СШ имени Н.П. Лавёрова\"",18,37.5,"Кузнецова Л.В."]
["участник","Румянцев Илья Владимирович","МБОУ \"Коношская СШ имени Н.П. Лавёрова\"",17.5,36.458333333333336,"Власова Г.В."]
["участник","Ельцова Екатерина Алексеевна","МБОУ \"Коношская СШ имени Н.П. Лавёрова\"",17,35.416666666666664,"Кузнецова Л.В."]
["участник","Алиева Зарина Хикмет кызы","МБОУ \"Коношская СШ имени Н.П. Лавёрова\"",16.5,34.375,"Вилакова И.П"]
["участник","Козенкова Софья Сергеевна","МБОУ \"Коношская СШ имени Н.П. Лавёрова\"",14,29.166666666666668,"Кузнецова Л.В."]
["участник","Гриньков Евгений Сергеевич","МБОУ \"Коношская СШ имени Н.П. Лавёрова\"",13.5,28.125,"Власова Г.В."]
["участник","Шушерин Николай Михайлович","МБОУ \"Коношская СШ имени Н.П. Лавёрова\"",13.5,28.125,"Кузнецова Л.В."]
["участник","Куваев Степан Андреевич","МБОУ \"Коношская СШ имени Н.П. Лавёрова\"",12.5,26.041666666666668,"Кузнецова Л.В."]
["участник","Лучкинская Елена Владимировна","МБОУ \"Коношская СШ имени Н.П. Лавёрова\"",12,25,"Вилакова И.П."]
["участник","Иванов Дмитрий Васильевич","МБОУ \"Коношская СШ имени Н.П. Лавёрова\"",10,20.833333333333332,"Вилакова И.П."]
["участник","Кокачев Климентий Васильевич","МБОУ \"Коношская СШ имени Н.П. Лавёрова\"",6,12.5,"Кузнецова Л.В."]
["участник","Галашов Николай Васильевич","МБОУ \"Лесозаводская СШ\"",20,41.666666666666664,"Ткаченко А.Н."]
["участник","Бобров Ярослав Владимирович","МБОУ \"Лесозаводская СШ\"",19,39.583333333333336,"Дубонос С.Н."]
["участник","Решетова Каролина Романовна","МБОУ \"Лесозаводская СШ\"",17,35.416666666666664,"Ткаченко А.Н."]
["участник","Брыкалова Мария Алексеевна","МБОУ \"Лесозаводская СШ\"",15.5,32.291666666666664,"Ткаченко А.Н."]
["участник","Камададзе Майя Мамуковна","МБОУ \"Лесозаводская СШ\"",11,22.916666666666668,"Ткаченко А.Н."]
["участник","Миронова Полина Николаевна","МБОУ \"Лесозаводская СШ\"",11,22.916666666666668,"Ткаченко А.Н."]
["участник","Степина Анастасия Валерьевна","МБОУ \"Подюжская СШ им. В.А. Абрамова\"",11.5,23.958333333333332,"Быкова А.В."]

{"sheet":"9 класс","index":5,"n_rows":36,"n_cols":9,"rows_kept":36,"merged":[[0,1,0,3]]}
[null,"9 класс Русский язык (школьный этап)"]
[null,"Фамилия Имя и Отчество участника","школа ","баллы","%","ФИО учителя","макс кол-во баллов ",null,46]
["участник","Кочетков Даниил Алексеевич","МБОУ \"Вохтомская ОШ\"",16,{"$f":"D3*100/46","v":{"v":34.78260869565217,"d":"35"}},"Гольцева О.В."]
["участник","Ивашова Анна Сергеевна","МБОУ \"Вохтомская ОШ\"",14,{"v":30.434782608695652,"d":"30"},"Гольцева О.В."]
["участник","Эдиева Елизавета Турпаловна","МБОУ \"Вохтомская ОШ\"",8,{"v":17.391304347826086,"d":"17"},"Гольцева О.В."]
["участник","Шкрадюк Кирилл Владимирович","МБОУ \"Вохтомская ОШ\"",5,{"v":10.869565217391305,"d":"11"},"Гольцева О.В."]
["участник","Ожигин Дмитрий Александрович","МБОУ \"Вохтомская ОШ\" СП \"Волошская ОШ\"",10,{"v":21.73913043478261,"d":"22"},"Иванова Е.Н."]
["участник","Виноградов Михаил Максимовч","МБОУ \"Вохтомская ОШ\" СП \"Волошская ОШ\"",8,{"v":17.391304347826086,"d":"17"},"Иванова Е.Н."]
["участник","Артемов Михаил Сергеевич","МБОУ \"Вохтомская ОШ\" СП \"Волошская ОШ\"",6,{"v":13.043478260869565,"d":"13"},"Иванова Е.Н."]
["участник","Терехин Михаил Викторович","МБОУ \"Вохтомская ОШ\" СП \"Волошская ОШ\"",5,{"v":10.869565217391305,"d":"11"},"Иванова Е.Н."]
["участник","Уваров Денис Владимирович","МБОУ \"Вохтомская ОШ\" СП \"Волошская ОШ\"",4.5,{"v":9.782608695652174,"d":"10"},"Иванова Е.Н."]
["участник","Таранова Виктория Владимировна","МБОУ \"Ерцевская СШ им. С.И. Бочарова\"",10,{"v":21.73913043478261,"d":"22"},"Каданцева Н.В."]
["участник","Гуренко Дарья Александровна","МБОУ \"Ерцевская СШ им. С.И. Бочарова\"",9,{"v":19.565217391304348,"d":"20"},"Каданцева Н.В."]
["участник","Цыпленкова Олеся Константиновна","МБОУ \"Ерцевская СШ им. С.И. Бочарова\"",9,{"v":19.565217391304348,"d":"20"},"Каданцева Н.В."]
["участник","Руссу Дарья Руслановна","МБОУ \"Ерцевская СШ им. С.И. Бочарова\"",8,{"v":17.391304347826086,"d":"17"},"Каданцева Н.В."]
["участник","Ярошевич Дарья Евгеньевна","МБОУ \"Ерцевская СШ им. С.И. Бочарова\"",8,{"v":17.391304347826086,"d":"17"},"Каданцева Н.В."]
["участник","Иванова Полина Ивановна","МБОУ \"Ерцевская СШ им. С.И. Бочарова\"",6.5,{"v":14.130434782608695,"d":"14"},"Каданцева Н.В."]
["участник","Маурин Илья Николаевич","МБОУ \"Коношеозерская СШ им. В.А.Корытова\"",5,{"v":10.869565217391305,"d":"11"},"Ионина О.А."]
["участник","Мардвин Иван Павлович","МБОУ \"Коношеозерская СШ им. В.А.Корытова\"",4.5,{"v":9.782608695652174,"d":"10"},"Ионина О.А."]
["участник","Киселев Максим Александрович","МБОУ \"Коношеозерская СШ им. В.А.Корытова\"",0.5,{"v":1.0869565217391304,"d":"1"},"Ионина О.А."]
["призер","Короткевич Елена Витальевна","МБОУ \"Коношская ОШ\"",22,{"v":47.82608695652174,"d":"48"},"Павлова А.Н."]
["победитель","Трофимов Александр Сергеевич","МБОУ \"Коношская СШ имени Н.П. Лавёрова\"",24,{"v":52.17391304347826,"d":"52"},"Комотёсова Н.Н."]
["участник","Семчук Софья Николаевна","МБОУ \"Коношская СШ имени Н.П. Лавёрова\"",13,{"v":28.26086956521739,"d":"28"},"Мерёжина Н.Н."]
["участник","Красов Арсений Сергеевич","МБОУ \"Коношская СШ имени Н.П. Лавёрова\"",8,{"v":17.391304347826086,"d":"17"},"Мерёжина Н.Н."]
["участник","Петлюк Екатерина Олеговна ","МБОУ \"Коношская СШ имени Н.П. Лавёрова\"",8,{"v":17.391304347826086,"d":"17"},"Комотёсова Н.Н."]
["участник","Ермолин Максим Николаевич","МБОУ \"Коношская СШ имени Н.П. Лавёрова\"",5.5,{"v":11.956521739130435,"d":"12"},"Мерёжина Н.Н."]
["участник","Клименко Юлия Павловна ","МБОУ \"Коношская СШ имени Н.П. Лавёрова\"",5,{"v":10.869565217391305,"d":"11"},"Комотёсова Н.Н."]
["победитель","Смирнова Милана Сергеевна","МБОУ \"Лесозаводская СШ\"",27,{"v":58.69565217391305,"d":"59"},"Ткаченко А.Н."]
["участник","Ракитина Дарья Владимировна","МБОУ \"Лесозаводская СШ\"",15,{"v":32.608695652173914,"d":"33"},"Ткаченко А.Н."]
["участник","Калинина Полина Максимовна","МБОУ \"Лесозаводская СШ\"",13.5,{"v":29.347826086956523,"d":"29"},"Ткаченко А.Н."]
["участник","Верещагина Юлия Сергеевна","МБОУ \"Лесозаводская СШ\"",11.5,25,"Дубонос С.Н."]
["участник","Седунова Кристина Александровна","МБОУ \"Лесозаводская СШ\"",10,{"v":21.73913043478261,"d":"22"},"Ткаченко А.Н."]
["участник","Калинина Виктория Сергеевна","МБОУ \"Лесозаводская СШ\"",8.5,{"v":18.47826086956522,"d":"18"},"Ткаченко А.Н."]
["призер","Соколова Вероника Николаевна","МБОУ \"Подюжская СШ им. В.А. Абрамова\"",21,{"v":45.65217391304348,"d":"46"},"Корытова Е.М."]
["участник","Симановская Анастасия Алексеевна","МБОУ \"Подюжская СШ им. В.А. Абрамова\"",15,{"v":32.608695652173914,"d":"33"},"Корытова Е.М."]
["участник","Страшненкова София Александровна","МБОУ \"Подюжская СШ им. В.А. Абрамова\"",15,{"v":32.608695652173914,"d":"33"},"Корытова Е.М."]

{"sheet":"10 класс","index":6,"n_rows":15,"n_cols":8,"rows_kept":15,"merged":[[0,1,0,3]]}
[null,"10 класс Русский язык (школьный этап)"]
[null,"Фамилия Имя и Отчество участника","школа ","баллы","%","ФИО учителя","макс кол-во баллов ",67]
["участник","Тарасова Милена Николаевна","МБОУ \"Ерцевская СШ им. С.И. Бочарова\"",25.5,{"$f":"D3*100/67","v":{"v":38.059701492537314,"d":"38"}},"Пугачева И.Г."]
["участник","Пашков Иван Сергеевич","МБОУ \"Ерцевская СШ им. С.И. Бочарова\"",24.5,{"v":36.56716417910448,"d":"37"},"Пугачева И.Г."]
["участник","Шахов Нкита Алексеевич","МБОУ \"Климовская СШ\"",21,{"v":31.34328358208955,"d":"31"},"Пателина Е.М."]
["участник","Мирхайдарова Анастасия Альбертовна","МБОУ \"Климовская СШ\"",18,{"v":26.865671641791046,"d":"27"},"Пателина Е.М."]
["участник","Попов Егор \nАлексеевич\n","МБОУ \"Коношеозерская СШ им. В.А.Корытова\"",26,{"v":38.80597014925373,"d":"39"},"Ионина О.А."]
["участник","Колесникович Карина Александровна","МБОУ \"Коношеозерская СШ им. В.А.Корытова\"",22,{"v":32.83582089552239,"d":"33"},"Ионина О.А."]
["участник","Шилова Светлана Александровна","МБОУ \"Коношеозерская СШ им. В.А.Корытова\"",12.5,{"v":18.65671641791045,"d":"19"},"Ионина О.А."]
["победитель","Юрьева Ксения Васильевна","МБОУ \"Коношская СШ имени Н.П. Лавёрова\"",52.5,{"v":78.35820895522389,"d":"78"},"Мерёжина Н.Н."]
["призер","Лукаш Анастасия Павловна","МБОУ \"Коношская СШ имени Н.П. Лавёрова\"",34.5,{"v":51.492537313432834,"d":"51"},"Мерёжина Н.Н."]
["призер","Куланин Матвей Андреевич","МБОУ \"Коношская СШ имени Н.П. Лавёрова\"",30,{"v":44.776119402985074,"d":"45"},"Мерёжина Н.Н."]
["победитель","Бобров Василий Иванович","МБОУ \"Лесозаводская СШ\"",35,{"v":52.23880597014925,"d":"52"},"Петрова Т.Н."]
["призер","Горчакова Алёна Александровна","МБОУ \"Лесозаводская СШ\"",34,{"v":50.74626865671642,"d":"51"},"Петрова Т.Н."]
["участник","Бурлака Алиса Алексеевна","МБОУ \"Лесозаводская СШ\"",28,{"v":41.791044776119406,"d":"42"},"Петрова Т.Н."]

{"sheet":"11 класс","index":7,"n_rows":9,"n_cols":8,"rows_kept":9,"merged":[[0,1,0,3]]}
[null,"11 класс Русский язык (школьный этап)"]
[null,"Фамилия Имя и Отчество участника","школа ","баллы","%","ФИО учителя","макс кол-во баллов ",67]
["участник","Валуевич Арина Алексеевна","МБОУ \"Ерцевская СШ им. С.И. Бочарова\"",28.5,{"$f":"D3*100/67","v":{"v":42.53731343283582,"d":"43"}},"Пугачева И.Г."]
["участник","Бескровная Полина Сергеевна","МБОУ \"Ерцевская СШ им. С.И. Бочарова\"",25,{"v":37.3134328358209,"d":"37"},"Пугачева И.Г."]
["участник","Гахраманов Артур Шахларович","МБОУ \"Ерцевская СШ им. С.И. Бочарова\"",22,{"v":32.83582089552239,"d":"33"},"Пугачева И.Г."]
["участник","Козенкова Олеся Алексеевна","МБОУ \"Коношеозерская СШ им. В.А.Корытова\"",21,{"v":31.34328358208955,"d":"31"},"Ефремычева Г.И."]
["участник","Наумов Вячеслав Александрович","МБОУ \"Коношеозерская СШ им. В.А.Корытова\"",19,{"v":28.35820895522388,"d":"28"},"Ефремычева Г.И."]
["победитель","Васильева Карина Сергеевна","МБОУ \"Коношская СШ имени Н.П. Лавёрова\"",40.5,{"v":60.44776119402985,"d":"60"},"Мерёжина Н.Н."]
["призер","Ерина Арина Олеговна","МБОУ \"Коношская СШ имени Н.П. Лавёрова\"",35,{"v":52.23880597014925,"d":"52"},"Мерёжина Н.Н."]